bitfinex-derivatives/quotes_BTCF0:USTF0_20230702
["timestamp","ask_amount","ask_price","bid_price","bid_amount"]
[1688329240120,0.00820602,30578.0,30577.0,0.580121]
[1688329240513,0.00820602,30578.0,30577.0,0.59835069]
[1688329240709,0.526419,30580.0,30577.0,0.59835069]
[1688329240913,0.526419,30580.0,30579.0,0.62862]
[1688329241624,0.526419,30580.0,30579.0,0.64684969]
[1688329246625,0.53377392,30580.0,30579.0,0.64684969]
[1688329250024,0.51415492,30580.0,30579.0,0.64684969]
[1688329252232,0.51621741,30580.0,30579.0,0.64684969]
[1688329254120,0.53583641,30580.0,30579.0,0.64684969]
[1688329264733,0.53583641,30580.0,30579.0,0.28604969]
[1688329264940,0.53583641,30580.0,30579.0,0.64684969]
[1688329282558,0.53583641,30580.0,30579.0,0.28604969]
[1688329282762,0.53583641,30580.0,30579.0,0.64684969]
[1688329286868,0.53583641,30580.0,30579.0,0.28604969]
[1688329287359,0.53583641,30580.0,30579.0,0.64684969]
[1688329293165,0.53583641,30580.0,30579.0,0.89394969]
[1688329293166,0.22903641,30580.0,30579.0,0.89394969]
[1688329293369,0.20941741,30580.0,30579.0,0.89394969]
[1688329297872,0.20941741,30580.0,30579.0,0.53314969]
[1688329298067,0.20941741,30580.0,30579.0,0.89394969]
[1688329306662,0.22903641,30580.0,30579.0,0.89394969]
[1688329320774,0.20941741,30580.0,30579.0,0.89394969]
[1688329324777,0.22903641,30580.0,30579.0,0.89394969]
[1688329339590,0.22903641,30580.0,30579.0,0.53314969]
[1688329339988,0.22903641,30580.0,30579.0,0.89394969]
[1688329342085,0.22903641,30580.0,30579.0,0.53314969]
[1688329342285,0.22903641,30580.0,30579.0,0.89394969]
[1688329346790,0.22903641,30580.0,30579.0,0.87572]
[1688329346993,0.22903641,30580.0,30579.0,0.609]
[1688329347296,0.26611555,30580.0,30579.0,0.26782]
[1688329347888,0.24788586,30580.0,30579.0,0.26782]
[1688329349290,0.22903641,30580.0,30579.0,0.26782]
[1688329353297,0.26611555,30580.0,30579.0,0.26782]
[1688329354203,0.24788586,30580.0,30579.0,0.26782]
[1688329354702,0.26611555,30580.0,30579.0,0.26782]
[1688329354906,0.24788586,30580.0,30579.0,0.26782]
[1688329357201,0.22903641,30580.0,30579.0,0.26782]
[1688329358607,0.22903641,30580.0,30579.0,0.28604969]
[1688329358903,0.22903641,30580.0,30579.0,0.26782]
[1688329360415,0.24788586,30580.0,30579.0,0.26782]
[1688329360604,0.22903641,30580.0,30579.0,0.26782]
[1688329361819,0.2472661,30580.0,30579.0,0.26782]
[1688329362323,0.24788586,30580.0,30579.0,0.26782]
[1688329368130,0.22903641,30580.0,30579.0,0.26782]
[1688329368527,0.2472661,30580.0,30579.0,0.26782]
[1688329368724,0.22903641,30580.0,30579.0,0.26782]
[1688329369225,0.26611555,30580.0,30579.0,0.26782]
[1688329371418,0.26611555,30580.0,30579.0,0.2477]
[1688329371419,0.87281555,30580.0,30579.0,0.2477]
[1688329371621,0.87281555,30580.0,30576.0,0.2482]
[1688329371622,0.87931555,30580.0,30576.0,0.2482]
[1688329371822,0.6078,30577.0,30576.0,0.2482]
[1688329372021,0.6078,30577.0,30574.0,0.00049056]
[1688329372022,0.633921,30577.0,30574.0,0.00049056]
[1688329372227,0.2482,30575.0,30574.0,0.00049056]
[1688329372428,0.32221751,30575.0,30574.0,0.00049056]
[1688329372628,0.32221751,30575.0,30571.0,0.27442681]
[1688329372834,0.2482,30572.0,30571.0,0.27442681]
[1688329373041,0.267824,30572.0,30571.0,0.2482]
[1688329373737,0.30490314,30572.0,30571.0,0.2482]
[1688329375324,0.30490314,30572.0,30569.0,0.02616599]
[1688329375641,0.2482,30570.0,30568.0,0.00049065]
[1688329375824,0.267826,30569.0,30568.0,0.00049065]
[1688329376025,0.30490514,30569.0,30568.0,0.00049065]
[1688329380636,0.30490514,30569.0,30568.0,0.02011765]
[1688329382537,0.30380514,30569.0,30568.0,0.26831765]
[1688329384542,0.266726,30569.0,30568.0,0.26831765]
[1688329385537,0.266726,30569.0,30568.0,0.57991765]
[1688329386142,0.266726,30569.0,30568.0,0.59814734]
[1688329386342,0.266726,30569.0,30568.0,0.57991765]
[1688329386540,0.266726,30569.0,30568.0,0.59814734]
[1688329387935,0.266726,30569.0,30568.0,0.57991765]
[1688329388637,0.28557545,30569.0,30568.0,0.57991765]
[1688329389344,0.266726,30569.0,30568.0,0.57991765]
[1688329390850,0.28557545,30569.0,30568.0,0.57991765]
[1688329391848,0.30380514,30569.0,30568.0,0.57991765]
[1688329392547,0.05670514,30569.0,30568.0,0.57991765]
[1688329394543,0.03847545,30569.0,30568.0,0.57991765]
[1688329397156,0.019626,30569.0,30568.0,0.59814734]
[1688329398347,0.019626,30569.0,30568.0,0.57991765]
[1688329398552,0.019626,30569.0,30568.0,0.59814734]
[1688329399256,0.019626,30569.0,30568.0,0.57991765]
[1688329400758,0.019626,30569.0,30568.0,0.59814734]
[1688329401854,0.019626,30569.0,30568.0,0.57991765]
[1688329404454,0.019626,30569.0,30568.0,0.59814734]
[1688329405160,0.019626,30569.0,30568.0,0.57991765]
[1688329406757,0.03847545,30569.0,30568.0,0.57991765]
[1688329411259,0.019626,30569.0,30568.0,0.59814734]
[1688329412061,0.02319481,30569.0,30568.0,0.59814734]
[1688329412657,0.00356881,30569.0,30568.0,0.59814734]
[1688329417264,0.00356881,30569.0,30568.0,0.95894734]
[1688329419259,0.05888,30571.0,30568.0,0.95894734]
[1688329419260,0.05888,30571.0,30570.0,0.2482]
[1688329419455,0.05888,30571.0,30570.0,0.53375569]
[1688329425866,0.06235369,30571.0,30570.0,0.53375569]
[1688329430074,0.06235369,30571.0,30570.0,0.55948616]
[1688329438886,0.00347369,30571.0,30570.0,0.55948616]
[1688329440892,0.02309869,30571.0,30570.0,0.55948616]
[1688329441591,0.00347369,30571.0,30570.0,0.55948616]
[1688329443285,0.02309869,30571.0,30570.0,0.55948616]
[1688329443586,0.00347369,30571.0,30570.0,0.55948616]
[1688329445190,0.00347369,30571.0,30570.0,0.92028616]
[1688329448586,0.02309869,30571.0,30570.0,0.92028616]
[1688329453394,0.02309869,30571.0,30570.0,0.55948616]
[1688329453688,0.02309869,30571.0,30570.0,0.92028616]
[1688329458802,0.00347369,30571.0,30570.0,0.92028616]
[1688329459610,0.058875,30573.0,30570.0,0.92028616]
[1688329459910,0.058875,30573.0,30572.0,0.2477]
[1688329460111,0.058875,30573.0,30572.0,0.28555369]
[1688329461106,0.058875,30573.0,30572.0,0.64635369]
[1688329465006,0.058875,30573.0,30572.0,0.28555369]
[1688329465206,0.058875,30573.0,30572.0,0.64635369]
[1688329465917,0.058875,30573.0,30572.0,0.28555369]
[1688329466112,0.058875,30573.0,30572.0,0.64635369]
[1688329470718,0.06343635,30573.0,30572.0,0.64635369]
[1688329471112,0.06343635,30573.0,30572.0,0.28555369]
[1688329471421,0.06343635,30573.0,30572.0,0.64635369]
[1688329482823,0.06343635,30573.0,30572.0,0.28555369]
[1688329483020,0.06343635,30573.0,30572.0,0.64635369]
[1688329485033,0.06343635,30573.0,30572.0,0.28555369]
[1688329485228,0.06343635,30573.0,30572.0,0.64635369]
[1688329486035,0.06343635,30573.0,30572.0,0.28555369]
[1688329486328,0.06343635,30573.0,30572.0,0.64635369]
[1688329488928,0.06343635,30573.0,30572.0,0.28555369]
[1688329489438,0.06343635,30573.0,30572.0,0.64635369]
[1688329499135,0.00456135,30573.0,30572.0,0.64635369]
[1688329499939,0.00456135,30573.0,30572.0,0.28555369]
[1688329500142,0.00456135,30573.0,30572.0,0.64635369]
[1688329505344,0.02418535,30573.0,30572.0,0.64635369]
[1688329510858,0.02418535,30573.0,30572.0,0.28555369]
[1688329511056,0.02418535,30573.0,30572.0,0.64635369]
[1688329515254,0.00456135,30573.0,30572.0,0.64635369]
[1688329524562,0.00456135,30573.0,30572.0,0.28555369]
[1688329524773,0.00456135,30573.0,30572.0,0.64635369]
[1688329536167,0.02418535,30573.0,30572.0,0.64635369]
[1688329539081,0.00456135,30573.0,30572.0,0.64635369]
[1688329543275,0.02418535,30573.0,30572.0,0.64635369]
[1688329548679,0.02418535,30573.0,30572.0,0.28555369]
[1688329548879,0.02418535,30573.0,30572.0,0.64635369]
[1688329551285,0.00456135,30573.0,30572.0,0.64635369]
[1688329556082,0.00049042,30575.0,30572.0,0.64635369]
[1688329556284,0.00049042,30575.0,30574.0,0.2477]
[1688329556490,0.00049042,30575.0,30574.0,0.267323]
[1688329557084,0.00049042,30575.0,30574.0,0.577023]
[1688329557393,0.00049042,30575.0,30574.0,0.59525269]
[1688329560183,0.00049042,30575.0,30574.0,0.95605269]
[1688329560690,0.00475267,30575.0,30574.0,0.95605269]
[1688329564688,0.24905,30580.0,30574.0,0.95605269]
[1688329565004,0.56385,30580.0,30579.0,0.51592]
[1688329565189,0.24905,30580.0,30579.0,0.53414969]
[1688329568306,0.24905,30580.0,30579.0,0.89494969]
[1688329572599,0.24905,30580.0,30579.0,0.64684969]
[1688329573794,0.24905,30580.0,30579.0,0.67298553]
[1688329575697,0.25571509,30580.0,30579.0,0.67298553]
[1688329576400,0.20666509,30580.0,30579.0,0.67298553]
[1688329576599,0.22628409,30580.0,30579.0,0.67298553]
[1688329576989,0.22628409,30580.0,30579.0,0.31218553]
[1688329586709,0.20666509,30580.0,30579.0,0.31218553]
[1688329590214,0.20941253,30580.0,30579.0,0.31218553]
[1688329590611,0.20941253,30580.0,30579.0,0.56038553]
[1688329593004,0.20941253,30580.0,30579.0,0.92118553]
[1688329604413,0.22903153,30580.0,30579.0,0.92118553]
[1688329606917,0.22903153,30580.0,30579.0,0.56038553]
[1688329607118,0.22903153,30580.0,30579.0,0.92118553]
[1688329608915,0.20941253,30580.0,30579.0,0.92118553]
[1688329615928,0.18982431,30580.0,30579.0,1.92118553]
[1688329624635,0.18982431,30580.0,30579.0,1.56038553]
[1688329624838,0.18982431,30580.0,30579.0,1.92118553]
[1688329627931,0.18982431,30580.0,30579.0,1.98665386]
[1688329637640,0.18982431,30580.0,30579.0,1.62585386]
[1688329637837,0.18982431,30580.0,30579.0,1.98665386]
[1688329644146,0.18982431,30580.0,30579.0,1.62585386]
[1688329644454,0.18982431,30580.0,30579.0,1.98665386]
[1688329650246,0.18982431,30580.0,30579.0,1.62585386]
[1688329650446,0.18982431,30580.0,30579.0,1.98665386]
[1688329650850,0.18982431,30580.0,30579.0,1.62585386]
[1688329651351,0.18982431,30580.0,30579.0,1.98665386]
[1688329652950,0.18982431,30580.0,30579.0,1.98718785]
[1688329656853,0.20944331,30580.0,30579.0,1.90348983]
[1688329657667,0.20944331,30580.0,30579.0,1.92171952]
[1688329664266,0.20944331,30580.0,30579.0,1.67351952]
[1688329671274,0.20944331,30580.0,30579.0,1.98101952]
[1688329671874,0.20944331,30580.0,30579.0,1.62021952]
[1688329672076,0.20944331,30580.0,30579.0,1.98101952]
[1688329674778,0.20944331,30580.0,30579.0,1.62021952]
[1688329674976,0.20944331,30580.0,30579.0,1.98101952]
[1688329675678,0.20944331,30580.0,30579.0,2.22921952]
[1688329679767,0.20944331,30580.0,30579.0,1.86841952]
[1688329679973,0.20944331,30580.0,30579.0,2.22921952]
[1688329681785,0.20944331,30580.0,30579.0,1.86841952]
[1688329681984,0.20944331,30580.0,30579.0,2.22921952]
[1688329689794,0.20944331,30580.0,30579.0,1.86841952]
[1688329689999,0.20944331,30580.0,30579.0,2.22921952]
[1688329691498,0.20944331,30580.0,30579.0,1.86841952]
[1688329691697,0.20944331,30580.0,30579.0,2.22921952]
[1688329697014,0.22829276,30580.0,30579.0,2.22921952]
[1688329697915,0.22829276,30580.0,30579.0,2.21098983]
[1688329698920,0.22829276,30580.0,30579.0,2.22921952]
[1688329699310,0.20944331,30580.0,30579.0,2.22921952]
[1688329704212,0.20944331,30580.0,30579.0,1.22921952]
[1688329707823,0.20944331,30580.0,30579.0,0.92171952]
[1688329708017,0.227673,30580.0,30579.0,0.65528983]
[1688329708220,0.227673,30580.0,30579.0,0.29448983]
[1688329708521,0.24652245,30580.0,30579.0,0.29448983]
[1688329711426,0.22829276,30580.0,30579.0,0.29448983]
[1688329715724,0.22829276,30580.0,30579.0,0.54268983]
[1688329716727,0.22829276,30580.0,30579.0,0.56091952]
[1688329717127,0.22829276,30580.0,30579.0,0.54268983]
[1688329717626,0.20944331,30580.0,30579.0,0.54268983]
[1688329717824,0.20944331,30580.0,30579.0,0.56091952]
[1688329718219,0.20944331,30580.0,30579.0,0.54268983]
[1688329718629,0.20944331,30580.0,30579.0,0.56091952]
[1688329719725,0.20944331,30580.0,30579.0,0.54268983]
[1688329722428,0.20944331,30580.0,30579.0,0.56091952]
[1688329722636,0.20944331,30580.0,30579.0,0.31271952]
[1688329722836,0.20944331,30580.0,30579.0,0.29448983]
[1688329724327,0.20944331,30580.0,30579.0,0.31271952]
[1688329725037,0.20944331,30580.0,30579.0,0.29448983]
[1688329725937,0.20944331,30580.0,30579.0,0.65528983]
[1688329726634,0.20944331,30580.0,30579.0,0.67351952]
[1688329732646,0.20944331,30580.0,30579.0,0.92171952]
[1688329736551,0.20944331,30580.0,30579.0,0.56091952]
[1688329736749,0.20944331,30580.0,30579.0,0.92171952]
[1688329737148,0.20944331,30580.0,30579.0,0.56091952]
[1688329737351,0.20944331,30580.0,30579.0,0.92171952]
[1688329737542,0.20944331,30580.0,30579.0,0.56091952]
[1688329737741,0.20944331,30580.0,30579.0,0.92171952]
[1688329739644,0.20944331,30580.0,30579.0,0.56091952]
[1688329740044,0.20944331,30580.0,30579.0,0.92171952]
[1688329740254,0.22829276,30580.0,30579.0,0.92171952]
[1688329741553,0.20944331,30580.0,30579.0,0.92171952]
[1688329743554,0.20944331,30580.0,30579.0,0.56091952]
[1688329743752,0.20944331,30580.0,30579.0,0.92171952]
[1688329745155,0.20944331,30580.0,30579.0,0.56091952]
[1688329745358,0.20944331,30580.0,30579.0,0.92171952]
[1688329745661,0.20944331,30580.0,30579.0,0.56091952]
[1688329745856,0.20944331,30580.0,30579.0,0.92171952]
[1688329753654,0.20944331,30580.0,30579.0,0.56091952]
[1688329753859,0.20944331,30580.0,30579.0,0.92171952]
[1688329755554,0.20277822,30580.0,30579.0,1.22391952]
[1688329755761,0.20735506,30580.0,30579.0,1.22391952]
[1688329756665,0.22620451,30580.0,30579.0,1.20568983]
[1688329758558,0.22620451,30580.0,30579.0,1.22391952]
[1688329759359,0.22620451,30580.0,30579.0,0.86311952]
[1688329759671,0.22620451,30580.0,30579.0,1.22391952]
[1688329761762,0.22620451,30580.0,30579.0,0.86311952]
[1688329761956,0.22620451,30580.0,30579.0,1.22391952]
[1688329763072,0.20735506,30580.0,30579.0,1.22391952]
[1688329766971,0.20735506,30580.0,30579.0,0.86311952]
[1688329767171,0.20735506,30580.0,30579.0,1.22391952]
[1688329770066,0.20460762,30580.0,30579.0,1.20568983]
[1688329770771,0.20736438,30580.0,30579.0,1.20568983]
[1688329770971,0.20736438,30580.0,30579.0,1.22391952]
[1688329773774,0.20736438,30580.0,30579.0,0.86311952]
[1688329773977,0.20736438,30580.0,30579.0,1.22391952]
[1688329774976,0.22621383,30580.0,30579.0,1.18606983]
[1688329775172,0.22621383,30580.0,30579.0,0.93786983]
[1688329776766,0.22621383,30580.0,30579.0,0.57706983]
[1688329776973,0.22621383,30580.0,30579.0,0.93786983]
[1688329777574,0.20736438,30580.0,30579.0,0.95609952]
[1688329777768,0.20736438,30580.0,30579.0,0.97571952]
[1688329778668,0.20736438,30580.0,30579.0,0.95748983]
[1688329781173,0.20736438,30580.0,30579.0,0.97571952]
[1688329781365,0.20736438,30580.0,30579.0,0.95748983]
[1688329781679,0.20736438,30580.0,30579.0,0.97571952]
[1688329782473,0.20736438,30580.0,30579.0,0.95748983]
[1688329784080,0.20736438,30580.0,30579.0,0.97571952]
[1688329784379,0.18774538,30580.0,30579.0,0.97571952]
[1688329785780,0.18774538,30580.0,30579.0,1.22391952]
[1688329786177,0.20736438,30580.0,30579.0,1.22391952]
[1688329787668,0.18774538,30580.0,30579.0,1.22391952]
[1688329794188,0.18774538,30580.0,30579.0,0.86311952]
[1688329794487,0.18774538,30580.0,30579.0,1.22391952]
[1688329802993,0.18774538,30580.0,30579.0,0.86311952]
[1688329803190,0.18774538,30580.0,30579.0,1.22391952]
[1688329805790,0.20736438,30580.0,30579.0,1.22391952]
[1688329827006,0.20736438,30580.0,30579.0,0.86311952]
[1688329827303,0.20736438,30580.0,30579.0,1.22391952]
[1688329835705,0.20736438,30580.0,30579.0,0.86311952]
[1688329835909,0.20736438,30580.0,30579.0,1.22391952]
[1688329839611,0.20736438,30580.0,30579.0,0.86311952]
[1688329839809,0.20736438,30580.0,30579.0,1.22391952]
[1688329846019,0.24444352,30580.0,30579.0,0.90348983]
[1688329846213,0.24444352,30580.0,30579.0,0.88386983]
[1688329847104,0.22621383,30580.0,30579.0,0.88386983]
[1688329847309,0.24444352,30580.0,30579.0,0.88386983]
[1688329847510,0.22621383,30580.0,30579.0,0.88386983]
[1688329848414,0.22621383,30580.0,30579.0,0.90348983]
[1688329848917,0.20736438,30580.0,30579.0,0.90348983]
[1688329852517,0.20736438,30580.0,30579.0,0.67351952]
[1688329853107,0.20736438,30580.0,30579.0,0.65528983]
[1688329855115,0.20736438,30580.0,30579.0,0.98798983]
[1688329857031,0.20736438,30580.0,30579.0,1.00621952]
[1688329858818,0.20736438,30580.0,30579.0,0.98798983]
[1688329859624,0.20736438,30580.0,30579.0,1.00621952]
[1688329859821,0.20736438,30580.0,30579.0,0.64541952]
[1688329860027,0.20736438,30580.0,30579.0,0.98798983]
[1688329861332,0.20736438,30580.0,30579.0,1.00621952]
[1688329861730,0.20736438,30580.0,30579.0,0.98798983]
[1688329862628,0.20736438,30580.0,30579.0,1.00621952]
[1688329862823,0.20736438,30580.0,30579.0,0.64541952]
[1688329863023,0.20736438,30580.0,30579.0,1.00621952]
[1688329863225,0.20736438,30580.0,30579.0,0.98798983]
[1688329865924,0.20736438,30580.0,30579.0,1.00621952]
[1688329866623,0.20736438,30580.0,30579.0,0.98798983]
[1688329872234,0.20736438,30580.0,30579.0,1.00621952]
[1688329873431,0.20736438,30580.0,30579.0,0.98798983]
[1688329874723,0.20736438,30580.0,30579.0,1.00621952]
[1688329875926,0.20736438,30580.0,30579.0,0.64541952]
[1688329876129,0.20736438,30580.0,30579.0,0.98798983]
[1688329876431,0.20736438,30580.0,30579.0,1.00621952]
[1688329878738,0.20736438,30580.0,30579.0,0.98798983]
[1688329879243,0.20736438,30580.0,30579.0,1.00621952]
[1688329880635,0.20736438,30580.0,30579.0,0.98798983]
[1688329880836,0.20736438,30580.0,30579.0,0.62718983]
[1688329881034,0.20736438,30580.0,30579.0,0.98798983]
[1688329881337,0.20736438,30580.0,30579.0,1.00621952]
[1688329881938,0.20736438,30580.0,30579.0,0.98798983]
[1688329882336,0.20736438,30580.0,30579.0,1.00621952]
[1688329882842,0.20736438,30580.0,30579.0,0.64541952]
[1688329883056,0.20736438,30580.0,30579.0,1.00621952]
[1688329884639,0.18774538,30580.0,30579.0,1.25301952]
[1688329889746,0.18774538,30580.0,30579.0,1.25286692]
[1688329893650,0.18774538,30580.0,30579.0,1.31752543]
[1688329896643,0.18774538,30580.0,30579.0,1.31767798]
[1688329897754,0.20736438,30580.0,30579.0,1.31767798]
[1688329898763,0.16483138,30580.0,30579.0,1.31767798]
[1688329899260,0.16483138,30580.0,30579.0,1.37507798]
[1688329899443,0.06826878,30586.0,30579.0,1.42224829]
[1688329899643,0.08788378,30587.0,30586.0,0.019615]
[1688329899851,0.08788378,30587.0,30586.0,0.267815]
[1688329900051,0.08788378,30587.0,30586.0,0.28604469]
[1688329900241,0.08726878,30587.0,30586.0,0.28604469]
[1688329900439,0.11726878,30587.0,30586.0,0.28604469]
[1688329900640,0.11726878,30587.0,30586.0,0.28657276]
[1688329900846,0.068615,30587.0,30586.0,0.28657276]
[1688329901046,0.068615,30587.0,30586.0,0.60307276]
[1688329903151,0.038615,30587.0,30586.0,0.60307276]
[1688329903759,0.019615,30587.0,30586.0,0.60307276]
[1688329906955,0.0251876,30587.0,30586.0,0.96387276]
[1688329912265,0.0251876,30587.0,30586.0,0.99008168]
[1688329920582,0.0055726,30587.0,30586.0,0.99008168]
[1688329921163,0.058841,30589.0,30586.0,0.99008168]
[1688329921370,0.00557149,30587.0,30586.0,0.72365199]
[1688329921664,0.058841,30589.0,30586.0,0.97185199]
[1688329921870,0.00557144,30587.0,30586.0,0.72365199]
[1688329922060,0.058841,30589.0,30586.0,0.97135199]
[1688329922262,0.058841,30589.0,30588.0,0.2482]
[1688329922467,0.058841,30589.0,30588.0,0.53424369]
[1688329923568,0.058841,30589.0,30588.0,0.53490112]
[1688329927374,0.058841,30589.0,30588.0,0.51528712]
[1688329927572,0.12646343,30589.0,30588.0,0.51528712]
[1688329927972,0.058841,30589.0,30588.0,0.51528712]
[1688329928664,0.12646345,30589.0,30588.0,0.51528712]
[1688329929577,0.12646345,30589.0,30588.0,0.53490112]
[1688329930075,0.12646345,30589.0,30588.0,0.89570112]
[1688329932481,0.13203406,30589.0,30588.0,0.64750112]
[1688329933068,0.13203406,30589.0,30588.0,0.28670112]
[1688329933272,0.06441161,30589.0,30588.0,0.64750112]
[1688329940886,0.13203369,30589.0,30588.0,0.64750112]
[1688329942081,0.13203369,30589.0,30588.0,0.28670112]
[1688329942282,0.13203369,30589.0,30588.0,0.64750112]
[1688329948786,0.13203369,30589.0,30588.0,0.89570112]
[1688329952481,0.13203369,30589.0,30588.0,0.53490112]
[1688329952682,0.13203369,30589.0,30588.0,0.89570112]
[1688329956192,0.13203369,30589.0,30588.0,0.53490112]
[1688329956391,0.13203369,30589.0,30588.0,0.89570112]
[1688329959084,0.09280569,30589.0,30588.0,0.89570112]
[1688329980704,0.09280569,30589.0,30588.0,0.64750112]
[1688329994921,0.07319269,30589.0,30588.0,0.89570112]
[1688330000918,0.00557061,30589.0,30588.0,0.89570112]
[1688330001217,0.06901878,30591.0,30588.0,0.89570112]
[1688330001517,0.00572043,30589.0,30588.0,0.62927143]
[1688330001720,0.019613,30590.0,30588.0,0.89570112]
[1688330001916,0.0057204,30589.0,30588.0,0.62927143]
[1688330002216,0.0057204,30589.0,30588.0,0.89520112]
[1688330004213,0.0057204,30589.0,30588.0,1.89520112]
[1688330004611,0.0253334,30589.0,30588.0,1.89520112]
[1688330010020,0.0253334,30589.0,30588.0,1.96139555]
[1688330014120,0.0253334,30589.0,30588.0,1.60059555]
[1688330014425,0.0253334,30589.0,30588.0,1.96139555]
[1688330015324,0.0253334,30589.0,30588.0,2.28999555]
[1688330016027,0.09295223,30589.0,30588.0,2.28999555]
[1688330017011,0.09295223,30589.0,30588.0,1.92919555]
[1688330017216,0.09295223,30589.0,30588.0,2.28999555]
[1688330017718,0.09295223,30589.0,30588.0,1.92919555]
[1688330017918,0.09295223,30589.0,30588.0,2.28999555]
[1688330019021,0.07333923,30589.0,30588.0,2.28999555]
[1688330021528,0.07333923,30589.0,30588.0,1.92919555]
[1688330021733,0.07333923,30589.0,30588.0,2.28999555]
[1688330023227,0.07333923,30589.0,30588.0,1.92919555]
[1688330023427,0.0057204,30589.0,30588.0,2.28999555]
[1688330025030,0.0253334,30589.0,30588.0,2.28999555]
[1688330027720,0.0057204,30589.0,30588.0,2.28999555]
[1688330038327,0.0253334,30589.0,30588.0,2.28999555]
[1688330038936,0.0253334,30589.0,30588.0,1.28999555]
[1688330039235,0.0253334,30589.0,30588.0,1.20557143]
[1688330039654,0.0253334,30589.0,30588.0,1.22380112]
[1688330039831,0.0253334,30589.0,30588.0,1.20557143]
[1688330040031,0.0253334,30589.0,30588.0,0.87697143]
[1688330040840,0.0253334,30589.0,30588.0,0.89520112]
[1688330044137,0.0253334,30589.0,30588.0,0.53440112]
[1688330044337,0.0253334,30589.0,30588.0,0.89520112]
[1688330053046,0.0253334,30589.0,30588.0,1.19940112]
[1688330054747,0.0057204,30589.0,30588.0,1.19940112]
[1688330059149,0.39221878,30591.0,30588.0,1.19940112]
[1688330059345,0.39221878,30591.0,30590.0,0.2482]
[1688330059536,0.39221878,30591.0,30590.0,0.267813]
[1688330059744,0.39221878,30591.0,30590.0,0.26858893]
[1688330060343,0.41106823,30591.0,30590.0,0.26858893]
[1688330063351,0.42929792,30591.0,30590.0,0.26858893]
[1688330063749,0.41106823,30591.0,30590.0,0.26858893]
[1688330064248,0.42929792,30591.0,30590.0,0.26858893]
[1688330064454,0.41106823,30591.0,30590.0,0.26858893]
[1688330067148,0.41106823,30591.0,30590.0,0.28681862]
[1688330067659,0.41678343,30591.0,30590.0,0.28681862]
[1688330068663,0.41678343,30591.0,30590.0,0.28662399]
[1688330069650,0.41678343,30591.0,30590.0,0.28681775]
[1688330070258,0.41678343,30591.0,30590.0,0.26858806]
[1688330072056,0.41678343,30591.0,30590.0,0.28681775]
[1688330072261,0.41678343,30591.0,30590.0,0.26858806]
[1688330072655,0.41678343,30591.0,30590.0,0.28681775]
[1688330073560,0.41678343,30591.0,30590.0,0.26858806]
[1688330074354,0.48440072,30591.0,30590.0,0.26858806]
[1688330074554,0.46555127,30591.0,30590.0,0.28681775]
[1688330075953,0.46555127,30591.0,30590.0,0.60641775]
[1688330076349,0.46555127,30591.0,30590.0,0.63250986]
[1688330078171,0.39793398,30591.0,30590.0,0.63250986]
[1688330079462,0.33909398,30591.0,30590.0,0.63250986]
[1688330080759,0.01589398,30591.0,30590.0,0.63250986]
[1688330084059,0.08350587,30591.0,30590.0,0.63250986]
[1688330090275,0.08350587,30591.0,30590.0,0.99330986]
[1688330091073,0.01589398,30591.0,30590.0,0.99330986]
[1688330091981,0.03550598,30591.0,30590.0,0.99330986]
[1688330093475,0.03550598,30591.0,30590.0,0.63250986]
[1688330093677,0.03550598,30591.0,30590.0,0.99330986]
[1688330096767,0.03550598,30591.0,30590.0,0.99311519]
[1688330097776,0.03550598,30591.0,30590.0,0.99330887]
[1688330098478,0.03550598,30591.0,30590.0,1.05738764]
[1688330098676,0.03550598,30591.0,30590.0,0.99330887]
[1688330100772,0.01589398,30591.0,30590.0,0.99330887]
[1688330102676,0.01589398,30591.0,30590.0,0.67370887]
[1688330102876,0.01589398,30591.0,30590.0,0.99220887]
[1688330104276,0.074829,30595.0,30592.0,1.0]
[1688330104470,0.074829,30595.0,30594.0,0.6083]
[1688330104673,0.074829,30595.0,30594.0,0.62791]
[1688330104870,0.074829,30595.0,30594.0,0.64613969]
[1688330105786,0.074829,30595.0,30594.0,0.64690836]
[1688330106681,0.074829,30595.0,30594.0,0.64729152]
[1688330107680,0.016,30595.0,30594.0,0.64729152]
[1688330108192,0.08360652,30595.0,30594.0,0.64729152]
[1688330111887,0.0940871,30595.0,30594.0,0.64729152]
[1688330112490,0.01,30596.0,30594.0,0.89549152]
[1688330112690,0.01,30596.0,30595.0,0.51262969]
[1688330112894,0.01,30596.0,30595.0,0.53223869]
[1688330113281,0.04,30596.0,30595.0,0.53223869]
[1688330113580,0.059,30596.0,30595.0,0.53223869]
[1688330113784,0.059,30596.0,30595.0,0.53338848]
[1688330113988,0.078609,30596.0,30595.0,0.28668848]
[1688330117287,0.059,30596.0,30595.0,0.28668848]
[1688330117493,0.078609,30596.0,30595.0,0.28668848]
[1688330118097,0.059,30596.0,30595.0,0.28668848]
[1688330120188,0.06686003,30596.0,30595.0,0.28668848]
[1688330120702,0.03686003,30596.0,30595.0,0.28668848]
[1688330120896,0.01786003,30596.0,30595.0,0.28668848]
[1688330125295,0.011707,30600.0,30598.0,1.0]
[1688330125494,0.06760171,30599.0,30598.0,1.409818]
[1688330125694,0.0160625,30602.0,30598.0,1.658018]
[1688330125899,0.058816,30602.0,30601.0,0.628105]
[1688330126288,0.058816,30602.0,30601.0,0.64633469]
[1688330126789,0.058816,30602.0,30601.0,0.64747288]
[1688330127802,0.06868782,30602.0,30601.0,0.64747288]
[1688330128502,0.06868782,30602.0,30601.0,0.62786788]
[1688330132801,0.06868782,30602.0,30601.0,0.62672969]
[1688330133801,0.06868782,30602.0,30601.0,0.64633569]
[1688330134710,0.06868782,30602.0,30601.0,0.62672969]
[1688330134896,0.09403727,30602.0,30601.0,0.6085]
[1688330135308,0.11226696,30602.0,30601.0,0.6085]
[1688330136206,0.09403727,30602.0,30601.0,0.6085]
[1688330136910,0.09403727,30602.0,30601.0,0.2477]
[1688330137108,0.09403727,30602.0,30601.0,0.6085]
[1688330137512,0.09403727,30602.0,30601.0,0.62672969]
[1688330138106,0.09403727,30602.0,30601.0,0.6085]
[1688330138309,0.09403727,30602.0,30601.0,0.62672969]
[1688330138513,0.07518782,30602.0,30601.0,0.62672969]
[1688330139404,0.07518782,30602.0,30601.0,0.64633469]
[1688330141210,0.06868782,30602.0,30601.0,0.64633469]
[1688330143918,0.00987182,30602.0,30601.0,0.64633469]
[1688330144417,0.02947682,30602.0,30601.0,0.64633469]
[1688330146713,0.02947682,30602.0,30601.0,0.62672969]
[1688330147720,0.02947682,30602.0,30601.0,0.64633469]
[1688330151718,0.02947682,30602.0,30601.0,0.28553469]
[1688330152020,0.02947682,30602.0,30601.0,0.64633469]
[1688330154524,0.02947682,30602.0,30601.0,0.28553469]
[1688330154824,0.02947682,30602.0,30601.0,0.64633469]
[1688330155822,0.02947682,30602.0,30601.0,0.28553469]
[1688330156018,0.02947682,30602.0,30601.0,0.64633469]
[1688330158520,0.11397532,30602.0,30601.0,0.64633469]
[1688330164417,0.11397532,30602.0,30601.0,0.628105]
[1688330164626,0.11397532,30602.0,30601.0,0.64633469]